bitfinex/quotes_BTCUSD_20241028
["timestamp","ask_amount","ask_price","bid_price","bid_amount"]
[1730124304841,0.25618963,68794.0,68793.0,0.145363]
[1730124305303,0.002,68795.0,68794.0,0.145361]
[1730124305538,0.40674344,68800.0,68799.0,0.14535]
[1730124305789,5e-05,68800.0,68799.0,0.14535]
[1730124306461,0.00305,68800.0,68799.0,0.14535]
[1730124306872,0.00205,68800.0,68799.0,0.14535]
[1730124307137,5e-05,68800.0,68799.0,0.14535]
[1730124307376,0.00405,68800.0,68796.0,0.29071]
[1730124307590,0.00405,68800.0,68795.0,0.145357]
[1730124307591,0.25618963,68799.0,68795.0,0.145357]
[1730124307799,0.002,68795.0,68794.0,0.145361]
[1730124308025,0.25618963,68799.0,68785.0,0.21652677]
[1730124308026,0.002,68796.0,68795.0,0.145359]
[1730124308295,0.002,68796.0,68785.0,0.21652677]
[1730124308296,0.002,68792.0,68791.0,0.145367]
[1730124308531,0.002,68792.0,68767.0,0.0792]
[1730124308532,0.25618963,68794.0,68788.0,0.145374]
[1730124308770,0.40669344,68794.0,68793.0,0.145363]
[1730124308984,0.15050381,68794.0,68793.0,0.145363]
[1730124309167,0.15050381,68794.0,68788.0,0.290747]
[1730124309168,0.15150381,68794.0,68788.0,0.290747]
[1730124309395,0.25618963,68793.0,68791.0,0.145366]
[1730124309658,0.25618963,68793.0,68792.0,0.145365]
[1730124309868,0.0795,68798.0,68795.0,0.145357]
[1730124310080,0.002,68796.0,68794.0,0.001]
[1730124310273,0.003,68796.0,68792.0,0.290728]
[1730124310510,0.003,68796.0,68793.0,0.145362]
[1730124310721,0.003,68793.0,68790.0,0.290738]
[1730124311176,0.001,68793.0,68792.0,0.145365]
[1730124312102,0.002,68790.0,68783.0,0.290766]
[1730124312332,0.004,68796.0,68770.0,0.290823]
[1730124312333,0.002,68780.0,68770.0,0.290823]
[1730124312574,0.002,68780.0,68779.0,0.36191977]
[1730124312575,0.25618963,68780.0,68779.0,0.36191977]
[1730124312805,0.25618963,68780.0,68777.0,0.145396]
[1730124313049,0.25618963,68780.0,68776.0,0.145397]
[1730124313050,0.002,68777.0,68776.0,0.145397]
[1730124313273,0.25818963,68780.0,68772.0,0.02165268]
[1730124313514,0.002,68788.0,68778.0,0.21652677]
[1730124313748,0.002,68785.0,68784.0,0.145382]
[1730124313978,0.25618963,68786.0,68773.0,0.02452302]
[1730124314235,0.009,68780.0,68779.0,0.145393]
[1730124314470,0.008,68780.0,68779.0,0.16704568]
[1730124314714,0.21652677,68793.0,68792.0,0.145365]
[1730124314960,0.21652677,68793.0,68779.0,0.02165268]
[1730124314961,0.21652677,68795.0,68794.0,0.145361]
[1730124315205,5e-05,68800.0,68799.0,0.14535]
[1730124315710,5e-05,68800.0,68799.0,0.14535]
[1730124316211,5e-05,68800.0,68791.0,0.290731]
[1730124316212,5e-05,68800.0,68795.0,0.290715]
[1730124316469,0.002,68791.0,68788.0,0.290748]
[1730124316697,0.25618963,68797.0,68796.0,0.145355]
[1730124316927,0.25818963,68797.0,68796.0,0.145355]
[1730124317210,0.25818963,68797.0,68795.0,0.145359]
[1730124317211,0.25618963,68797.0,68795.0,0.145359]
[1730124317443,0.002,68798.0,68794.0,0.002]
[1730124317664,0.25618963,68797.0,68795.0,0.145359]
[1730124317887,0.25618963,68797.0,68796.0,0.145357]
[1730124318122,5e-05,68800.0,68799.0,0.14535]
[1730124319495,0.001696,68800.0,68799.0,0.14825686]
[1730124319718,0.001696,68800.0,68799.0,0.14535]
[1730124320423,0.011696,68800.0,68799.0,0.14635]
[1730124320644,0.015696,68800.0,68799.0,0.14735]
[1730124320872,0.005696,68800.0,68799.0,0.14535]
[1730124321312,0.005696,68800.0,68799.0,0.14835]
[1730124321534,0.001696,68800.0,68799.0,0.14635]
[1730124322432,0.25788563,68800.0,68799.0,0.14535]
[1730124322886,0.003696,68800.0,68799.0,0.14535]
[1730124323125,0.003696,68800.0,68799.0,0.14635]
[1730124323400,0.001696,68800.0,68799.0,0.14635]
[1730124323632,0.001696,68800.0,68799.0,0.14535]
[1730124323852,0.008696,68800.0,68799.0,0.14535]
[1730124324538,0.00095433,68800.0,68799.0,0.15325679]
[1730124324768,0.00095433,68800.0,68799.0,0.37881813]
[1730124324989,0.001648,68817.0,68799.0,0.37881813]
[1730124324990,0.001648,68817.0,68816.0,0.40150463]
[1730124325927,0.001648,68817.0,68816.0,0.145315]
[1730124327266,0.002648,68817.0,68816.0,0.172315]
[1730124327730,0.001648,68817.0,68816.0,0.159315]
[1730124328671,0.00110276,68824.0,68823.0,0.1453]
[1730124329137,0.00110276,68824.0,68823.0,0.56989852]
[1730124329393,0.00110276,68824.0,68823.0,0.3541078]
[1730124329623,0.00110276,68824.0,68823.0,0.33380381]
[1730124329624,3.329e-05,68824.0,68823.0,0.33380381]
[1730124329862,3.329e-05,68824.0,68823.0,0.81009104]
[1730124330095,0.001646,68832.0,68831.0,0.160283]
[1730124330351,0.001698,68837.0,68831.0,0.160283]
[1730124330352,0.001698,68837.0,68836.0,0.43946163]
[1730124330588,0.001646,68854.0,68845.0,0.160253]
[1730124330815,0.001646,68854.0,68849.0,0.160245]
[1730124331056,0.001646,68854.0,68849.0,0.31365308]
[1730124331278,0.001646,68854.0,68849.0,0.31074881]
[1730124331502,0.001646,68854.0,68851.0,0.160241]
[1730124331733,0.001646,68854.0,68851.0,0.41534481]
[1730124332219,0.001646,68869.0,68864.0,0.150213]
[1730124332220,0.21817277,68869.0,68864.0,0.150213]
[1730124332455,0.21652677,68876.0,68875.0,0.14519]
[1730124332887,0.001646,68893.0,68875.0,0.14519]
[1730124332888,0.001646,68893.0,68875.0,0.25618963]
[1730124333107,0.21652677,68887.0,68885.0,0.145167]
[1730124333330,0.001646,68893.0,68878.0,0.00290328]
[1730124333586,0.001646,68893.0,68878.0,0.21943005]
[1730124333817,0.21652677,68888.0,68875.0,0.012]
[1730124334045,0.25618963,68883.0,68879.0,0.21652677]
[1730124334284,0.145172,68884.0,68879.0,0.21652677]
[1730124334505,0.25618963,68888.0,68866.0,0.21652677]
[1730124334506,0.40869344,68883.0,68868.0,0.290406]
[1730124334728,0.25618963,68875.0,68874.0,0.21652677]
[1730124334952,0.25618963,68875.0,68874.0,0.23817945]
[1730124335179,0.25618963,68880.0,68874.0,0.23817945]
[1730124335407,0.25618963,68880.0,68866.0,0.50694277]
[1730124335631,0.25618963,68875.0,68866.0,0.21652677]
[1730124335823,0.145195,68873.0,68866.0,0.21652677]
[1730124336109,0.25618963,68875.0,68866.0,0.50694177]
[1730124336340,0.25618963,68875.0,68870.0,0.1452]
[1730124336576,0.005,68867.0,68841.0,0.21652677]
[1730124336831,0.295457,68857.0,68855.0,0.21652677]
[1730124337043,0.290461,68856.0,68848.0,0.21652677]
[1730124337272,0.145245,68849.0,68848.0,0.21652677]
[1730124337490,0.005,68853.0,68841.0,0.21652677]
[1730124337720,0.290487,68850.0,68841.0,0.21652677]
[1730124337934,0.290487,68850.0,68832.0,0.50708877]
[1730124337935,0.15550381,68850.0,68839.0,0.21652677]
[1730124338156,0.25618963,68842.0,68840.0,0.02165268]
[1730124338402,0.40669344,68842.0,68840.0,0.02165268]
[1730124338643,0.15050381,68842.0,68840.0,0.02165268]
[1730124339324,0.15050381,68841.0,68833.0,0.145277]
[1730124339550,0.38599629,68842.0,68834.0,0.21652677]
[1730124339765,0.005,68851.0,68833.0,0.290555]
[1730124339766,0.145255,68845.0,68833.0,0.290555]
[1730124340026,0.29575981,68844.0,68837.0,0.435809]
[1730124340249,0.38599629,68838.0,68825.0,0.29059]
[1730124340473,0.15050381,68837.0,68832.0,0.21652677]
[1730124340695,0.15050381,68837.0,68818.0,0.005]
[1730124340937,0.145275,68835.0,68828.0,0.36181477]
[1730124341159,0.29578081,68834.0,68827.0,0.145291]
[1730124341393,0.29578081,68834.0,68826.0,0.290584]
[1730124341619,0.15050381,68834.0,68821.0,0.02215268]
[1730124341850,0.15050381,68834.0,68829.0,0.145287]
[1730124342084,0.15050381,68834.0,68822.0,0.02402302]
[1730124342085,0.15050381,68834.0,68823.0,0.2906]
[1730124342315,0.291526,68841.0,68828.0,0.21652677]
[1730124342316,0.001,68841.0,68828.0,0.21652677]
[1730124342592,0.15050381,68840.0,68830.0,0.29057]
[1730124342811,0.15050381,68840.0,68822.0,0.02902302]
[1730124342812,0.38599629,68839.0,68823.0,0.02215268]
[1730124343045,0.38599629,68839.0,68835.0,0.145273]
[1730124343273,0.1815,68843.0,68827.0,0.21652677]
[1730124343520,0.21652677,68849.0,68842.0,0.14526]
[1730124343745,0.21652677,68849.0,68828.0,0.02386795]
[1730124343746,0.15050381,68848.0,68843.0,0.145257]
[1730124343965,0.15050381,68848.0,68844.0,0.3050357]
[1730124344195,0.38599629,68851.0,68839.0,0.21652677]
[1730124344196,0.38599629,68851.0,68849.0,0.145245]
[1730124344419,0.38599629,68851.0,68839.0,0.21652677]
[1730124344420,0.076,68862.0,68854.0,0.290468]
[1730124344644,0.65747358,68861.0,68847.0,0.290499]
[1730124344878,0.38599629,68857.0,68848.0,0.21652677]
[1730124345144,0.38599629,68857.0,68856.0,0.21652677]
[1730124345384,0.001644,68865.0,68861.0,0.145218]
[1730124345628,0.15050381,68864.0,68858.0,0.290452]
[1730124345858,0.001644,68865.0,68859.0,0.21652677]
[1730124346099,0.001644,68865.0,68864.0,0.145213]
[1730124347789,0.002644,68865.0,68864.0,0.145213]
[1730124348017,0.001644,68865.0,68864.0,0.145213]
[1730124348249,0.38264029,68872.0,68863.0,0.290431]
[1730124348492,0.38264029,68872.0,68867.0,0.145206]
[1730124348729,0.001,68865.0,68864.0,0.16973602]
[1730124349381,0.001,68865.0,68863.0,0.145214]
[1730124349606,0.001,68865.0,68855.0,0.21652677]
[1730124349607,0.145206,68868.0,68862.0,0.145216]
[1730124349826,0.15050381,68867.0,68862.0,0.145216]
[1730124350052,0.145212,68865.0,68857.0,0.290455]
[1730124350292,0.145212,68865.0,68862.0,0.145216]
[1730124350293,0.001,68865.0,68862.0,0.145216]
[1730124350503,0.15050381,68867.0,68855.0,0.21652677]
[1730124350717,0.15050381,68867.0,68863.0,0.145215]
[1730124350939,0.15050381,68867.0,68855.0,0.21652677]
[1730124351199,0.290423,68865.0,68856.0,0.21652677]
[1730124351427,0.15050381,68864.0,68856.0,0.21652677]
[1730124351926,0.145189,68876.0,68869.0,0.145202]
[1730124352160,0.15050381,68876.0,68856.0,0.21652677]
[1730124352396,0.15050381,68876.0,68863.0,0.21652677]
[1730124352623,0.15050381,68875.0,68856.0,0.21652677]
[1730124352858,0.1452,68871.0,68859.0,0.21652677]
[1730124353079,0.15050381,68870.0,68860.0,0.21652677]
[1730124353296,0.145205,68868.0,68862.0,0.145217]
[1730124353531,0.15050381,68867.0,68862.0,0.145217]
[1730124353754,0.15050381,68867.0,68861.0,0.29044]
[1730124353972,0.15050381,68867.0,68866.0,0.145209]
[1730124354478,0.145187,68877.0,68871.0,0.145198]
[1730124354706,0.145187,68877.0,68860.0,0.21852677]
[1730124354707,0.15050381,68876.0,68864.0,0.290427]
[1730124354940,0.15050381,68876.0,68865.0,0.145211]
[1730124355166,0.15050381,68876.0,68868.0,0.29041]
[1730124355579,0.29569181,68876.0,68871.0,0.145198]
[1730124355849,0.15050381,68876.0,68868.0,0.29041]
[1730124356083,0.29569281,68876.0,68870.0,0.1452]
[1730124356331,0.15050381,68876.0,68867.0,0.21652677]
[1730124356555,0.15050381,68876.0,68869.0,0.145202]
[1730124356556,0.145191,68875.0,68869.0,0.145202]
[1730124356785,0.145191,68875.0,68868.0,0.001]
[1730124356786,0.145195,68873.0,68868.0,0.001]
[1730124357018,0.145195,68873.0,68863.0,0.290431]
[1730124357019,0.15050381,68872.0,68863.0,0.290431]
[1730124357251,0.15050381,68872.0,68864.0,0.291427]
[1730124357474,0.29570081,68872.0,68864.0,0.001]
[1730124357692,0.145199,68871.0,68865.0,0.14521]
[1730124357927,0.145206,68868.0,68861.0,0.14522]
[1730124358143,0.15050381,68870.0,68862.0,0.21652677]
[1730124358144,0.145209,68866.0,68862.0,0.21652677]
[1730124358364,0.145209,68866.0,68858.0,0.145224]
[1730124358365,0.145213,68864.0,68858.0,0.145225]
[1730124358588,0.15050381,68863.0,68862.0,0.21652677]
[1730124358824,0.15050381,68863.0,68856.0,0.000823]
[1730124359101,0.145228,68857.0,68856.0,0.000823]
[1730124359373,0.34719616,68857.0,68856.0,0.000823]
[1730124359592,0.34719616,68857.0,68846.0,0.21652677]
[1730124359593,0.55924529,68847.0,68846.0,0.21652677]
[1730124359818,0.92171345,68847.0,68846.0,0.21652677]
[1730124360038,0.150264,68840.0,68839.0,0.21652677]
[1730124360259,0.31423216,68840.0,68839.0,0.21652677]
[1730124360494,0.31423216,68840.0,68829.0,0.290571]
[1730124360495,0.145272,68837.0,68829.0,0.290571]
[1730124360725,0.274,68847.0,68844.0,0.145255]
[1730124360941,0.25,68859.0,68830.0,0.00290578]
[1730124360942,0.21652677,68858.0,68838.0,0.002]
[1730124361164,0.21652677,68858.0,68856.0,0.14523]
[1730124361390,0.01446131,68857.0,68856.0,0.14523]
[1730124361608,0.21652677,68865.0,68850.0,0.290483]
[1730124361900,0.16396574,68864.0,68851.0,0.21652677]
[1730124362115,0.0922,68870.0,68851.0,0.21652677]
[1730124362116,0.15050381,68865.0,68851.0,0.21943139]
[1730124362337,0.01346602,68864.0,68863.0,0.145215]
[1730124362559,0.21652677,68872.0,68867.0,0.145206]
[1730124362784,0.02275288,68873.0,68852.0,0.15050381]
[1730124362998,0.01346998,68872.0,68861.0,0.21652677]
[1730124363217,0.17325669,68873.0,68861.0,0.21652677]
[1730124363218,0.01346998,68871.0,68865.0,0.290422]
[1730124363438,0.15050381,68873.0,68865.0,0.290422]
[1730124363439,0.01346998,68870.0,68866.0,0.145209]
[1730124363645,0.01346998,68870.0,68863.0,0.21652677]
[1730124363646,0.01346998,68869.0,68863.0,0.21652677]
[1730124363863,0.16397379,68868.0,68866.0,0.145208]
[1730124364081,0.01346998,68867.0,68864.0,0.145212]
[1730124364303,0.01346998,68867.0,68863.0,0.21652677]
[1730124364304,0.01346998,68866.0,68863.0,0.145215]
[1730124364534,0.01346998,68866.0,68840.0,0.25562682]
[1730124364535,0.145223,68860.0,68854.0,0.145233]
[1730124364750,0.002,68870.0,68864.0,0.21652677]
[1730124364977,0.005,68878.0,68847.0,0.005]
[1730124364978,0.005,68876.0,68850.0,0.002]
[1730124365199,0.007,68872.0,68868.0,0.145204]
[1730124365419,0.1639858,68871.0,68867.0,0.001]
[1730124365644,0.01348199,68870.0,68866.0,0.145208]
[1730124365856,0.01348199,68869.0,68864.0,0.001]
[1730124366081,0.01348199,68868.0,68864.0,0.001]
[1730124366305,0.145211,68865.0,68864.0,0.001]
[1730124366535,0.1639858,68865.0,68864.0,0.001]
[1730124366984,0.1639858,68865.0,68864.0,0.146213]
[1730124367208,0.1639858,68865.0,68864.0,0.14911726]
[1730124367209,0.01348199,68865.0,68864.0,0.14911726]
[1730124367425,0.60232733,68891.0,68864.0,0.14911726]
[1730124367426,0.21652677,68877.0,68866.0,0.290416]
[1730124367640,0.21652677,68877.0,68856.0,0.005]
[1730124367641,0.16399435,68876.0,68871.0,0.145197]
[1730124367876,0.01349054,68875.0,68874.0,0.145191]
[1730124368089,0.01349054,68875.0,68872.0,0.145196]
[1730124368337,0.007,68871.0,68870.0,0.435599]
[1730124368557,0.02049054,68871.0,68870.0,0.435599]
[1730124368777,0.01349238,68871.0,68870.0,0.1913767]
[1730124368990,0.291997,68883.0,68875.0,0.145189]
[1730124369211,0.291997,68883.0,68874.0,0.147191]
[1730124369212,0.008,68875.0,68874.0,0.147191]
[1730124369434,0.31718686,68875.0,68874.0,0.002]
[1730124369702,0.31718686,68875.0,68863.0,0.290429]
[1730124369703,0.145201,68870.0,68863.0,0.290429]
[1730124369916,0.145201,68870.0,68869.0,0.21652677]
[1730124370128,0.01349238,68870.0,68859.0,0.21652677]
[1730124370349,0.15869638,68869.0,68863.0,0.145214]
[1730124370568,0.44088881,68874.0,68859.0,0.21652677]
[1730124370569,0.01349238,68868.0,68859.0,0.21652677]
[1730124370794,0.15050381,68874.0,68860.0,0.0029041]
[1730124371024,0.0135001,68873.0,68871.0,0.145198]
[1730124371244,0.290351,68882.0,68874.0,0.145191]
[1730124371467,0.0243971,68883.0,68874.0,0.145191]
[1730124371468,0.17752337,68881.0,68874.0,0.14519]
[1730124371686,0.007,68875.0,68874.0,0.001]
[1730124371879,0.3162037,68875.0,68874.0,0.001]
[1730124372132,0.01350989,68875.0,68874.0,0.145192]
[1730124372355,0.001646,68883.0,68880.0,0.145179]
[1730124372580,0.02051919,68882.0,68881.0,0.145177]
[1730124373050,0.001646,68883.0,68880.0,0.3048769]
[1730124373267,0.001646,68883.0,68882.0,0.145175]
[1730124373490,0.001646,68883.0,68882.0,0.14807821]
[1730124374377,0.001646,68883.0,68882.0,0.68438258]
[1730124374598,0.001646,68883.0,68882.0,0.68847937]
[1730124374829,0.001646,68893.0,68892.0,0.145154]
[1730124375054,0.001646,68893.0,68892.0,0.68645837]
[1730124375298,0.001646,68893.0,68892.0,0.69645837]
[1730124375510,0.001646,68893.0,68892.0,0.69845837]
[1730124375729,0.001646,68893.0,68892.0,0.68845837]
[1730124375955,0.001646,68893.0,68892.0,0.69845837]
[1730124376201,0.21652677,68917.0,68899.0,0.145139]
[1730124376418,0.21652677,68918.0,68899.0,0.77454528]
[1730124376652,0.21652677,68918.0,68899.0,0.83291153]
[1730124377132,0.21652677,68918.0,68917.0,0.145102]
[1730124377360,0.21652677,68927.0,68926.0,0.145083]
[1730124377577,0.0775,68936.0,68929.0,0.145075]
[1730124377798,0.15050381,68933.0,68915.0,0.29021]
[1730124378009,0.15050381,68933.0,68917.0,0.21652677]
[1730124378240,0.290145,68931.0,68919.0,0.145097]
[1730124378470,0.145077,68929.0,68921.0,0.145092]
[1730124378691,0.15050381,68928.0,68926.0,0.001]
[1730124378908,0.29018,68923.0,68918.0,0.21652677]
[1730124379137,0.145099,68918.0,68917.0,0.21652677]
[1730124379357,0.29560281,68918.0,68917.0,0.01]
[1730124379800,0.29560281,68918.0,68917.0,0.006]
[1730124380451,0.290204,68917.0,68906.0,0.145125]
[1730124380665,0.145111,68913.0,68905.0,0.145126]
[1730124380887,0.15050381,68912.0,68906.0,0.145124]
[1730124381137,0.15050381,68912.0,68907.0,0.145122]
[1730124381354,0.15050381,68912.0,68903.0,0.21652677]
[1730124381586,0.53630437,68912.0,68903.0,0.21652677]
[1730124381811,0.62260437,68912.0,68903.0,0.21652677]
[1730124382036,0.145124,68907.0,68903.0,0.21652677]
[1730124382260,0.0873,68912.0,68903.0,0.21652677]
[1730124382489,0.15050381,68911.0,68899.0,0.290276]
[1730124382705,0.15050381,68911.0,68888.0,0.21652677]
[1730124382706,0.39080056,68906.0,68896.0,0.21652677]
[1730124382927,0.145144,68897.0,68896.0,0.21652677]
[1730124383386,0.290281,68899.0,68888.0,0.50685177]
[1730124383600,0.290286,68898.0,68890.0,0.145158]
[1730124383823,0.15550381,68898.0,68881.0,0.36170377]
[1730124384044,0.145152,68893.0,68889.0,0.21652677]
[1730124384258,0.15050381,68892.0,68890.0,0.21652677]
[1730124384471,0.15050381,68892.0,68881.0,0.21652677]
[1730124384709,0.15050381,68892.0,68881.0,0.50688177]
[1730124384983,0.15050381,68892.0,68873.0,0.290386]
[1730124384984,0.15550381,68892.0,68873.0,0.290386]
[1730124385199,0.15550381,68892.0,68890.0,0.001]
[1730124385200,0.435469,68891.0,68890.0,0.001]
[1730124385418,0.44081681,68891.0,68882.0,0.21652677]
[1730124385638,0.38580056,68893.0,68882.0,0.50687677]
[1730124385639,0.15050381,68890.0,68882.0,0.50687677]
[1730124385850,0.15050381,68890.0,68882.0,0.21652677]
[1730124386060,0.15050381,68890.0,68885.0,0.145169]
[1730124386279,0.15050381,68890.0,68882.0,0.21652677]
[1730124386494,0.15050381,68890.0,68887.0,0.145164]
[1730124386709,0.15050381,68890.0,68885.0,0.145168]
[1730124386933,0.38580056,68886.0,68881.0,0.004]
[1730124387158,0.38580056,68886.0,68855.0,0.007]
[1730124387159,0.14519,68876.0,68874.0,0.21652677]
[1730124387372,0.145186,68877.0,68874.0,0.21652677]
[1730124387581,0.15050381,68877.0,68875.0,0.02165268]
[1730124387794,0.15050381,68877.0,68864.0,0.290423]
[1730124387795,0.15050381,68876.0,68862.0,0.290434]
[1730124388009,0.145202,68870.0,68868.0,0.21652677]
[1730124388223,0.1452,68871.0,68868.0,0.21652677]
[1730124388437,0.15050381,68871.0,68862.0,0.145216]
[1730124388665,0.15050381,68870.0,68866.0,0.21652677]
[1730124388880,0.15050381,68870.0,68867.0,0.02165268]
[1730124389096,0.15050381,68870.0,68869.0,0.145203]
[1730124389335,0.21652677,68884.0,68868.0,0.0410808]
[1730124389574,0.003,68870.0,68869.0,0.435609]
[1730124389830,0.003,68870.0,68869.0,0.46013202]
[1730124390082,0.15050381,68883.0,68869.0,0.46013202]
[1730124390083,0.15050381,68883.0,68880.0,0.145179]
[1730124390574,0.15050381,68883.0,68879.0,0.14518]
[1730124390831,0.15050381,68883.0,68876.0,0.290376]
[1730124391061,0.15050381,68883.0,68871.0,0.21652677]
[1730124391062,0.15050381,68883.0,68879.0,0.14518]
[1730124391302,0.15050381,68883.0,68877.0,0.290368]
[1730124391303,0.15050381,68883.0,68882.0,0.000823]
[1730124391802,0.0796,68889.0,68882.0,0.000823]
[1730124392041,0.39752677,68899.0,68882.0,0.000823]
[1730124392283,0.145146,68896.0,68890.0,0.145158]
[1730124392531,0.15050381,68895.0,68890.0,0.145158]
[1730124392757,0.145151,68894.0,68888.0,0.145161]
[1730124392985,0.14516,68890.0,68883.0,0.145173]
[1730124393241,0.007,68889.0,68886.0,0.21652677]
[1730124393498,0.007,68889.0,68888.0,0.145163]
[1730124393776,0.007,68889.0,68883.0,0.290347]
[1730124394019,0.15050381,68888.0,68882.0,0.001823]
[1730124394248,0.145173,68883.0,68882.0,0.001823]
[1730124394718,0.29033,68887.0,68882.0,0.001823]
[1730124394970,0.39280056,68889.0,68882.0,0.001823]
[1730124394971,0.15050381,68886.0,68882.0,0.001823]
[1730124395218,0.015,68897.0,68892.0,0.145153]
[1730124395219,0.145144,68897.0,68892.0,0.145153]
[1730124395489,0.008,68894.0,68889.0,0.145161]
[1730124395709,0.15050381,68893.0,68891.0,0.145156]
[1730124396232,0.373271,68900.0,68891.0,0.24086749]
[1730124396233,0.082996,68900.0,68891.0,0.24086749]
[1730124396459,0.15050381,68899.0,68891.0,0.02434072]
[1730124396705,0.15050381,68899.0,68898.0,0.145142]
[1730124397183,0.15050381,68899.0,68893.0,0.290305]
[1730124397427,0.15050381,68899.0,68888.0,0.290324]
[1730124397428,0.001696,68900.0,68899.0,0.145139]
[1730124398215,0.001696,68900.0,68899.0,0.30064281]
[1730124398474,0.001696,68900.0,68899.0,0.31064281]
[1730124398714,0.001696,68900.0,68899.0,0.43764281]
[1730124398943,0.001696,68900.0,68899.0,0.70974281]
[1730124399165,0.21652677,68928.0,68927.0,0.145081]
[1730124399689,0.001644,68934.0,68929.0,0.145076]
[1730124401633,0.001644,68934.0,68929.0,0.153076]
[1730124401869,0.001644,68934.0,68929.0,0.145076]
[1730124402326,0.00105,68930.0,68929.0,0.145076]
[1730124402830,5e-05,68930.0,68929.0,0.145076]
[1730124403069,0.00405,68930.0,68929.0,0.145076]
[1730124403813,5e-05,68930.0,68929.0,0.145076]
[1730124404040,0.001696,68930.0,68929.0,0.145076]
[1730124405037,0.001696,68930.0,68929.0,0.150076]
[1730124405269,0.002696,68930.0,68929.0,0.152076]
[1730124406215,0.002696,68930.0,68912.0,0.21652677]
[1730124406216,0.001696,68930.0,68912.0,0.21652677]
[1730124406452,0.001696,68930.0,68923.0,0.21652677]
[1730124406715,0.001696,68930.0,68921.0,0.0762]
[1730124406716,0.001696,68930.0,68929.0,0.152076]
[1730124406955,0.001696,68930.0,68929.0,0.147076]
[1730124407190,0.001696,68930.0,68929.0,0.151076]
[1730124407690,0.001696,68930.0,68929.0,0.14997715]
[1730124407958,0.001696,68930.0,68929.0,0.40048096]
[1730124408213,0.001628,68952.0,68929.0,0.25050381]
[1730124408448,0.001628,68952.0,68951.0,0.14503]
[1730124409403,0.015628,68952.0,68951.0,0.14503]
[1730124409631,0.015628,68952.0,68937.0,0.290119]
[1730124409884,0.001628,68952.0,68951.0,0.14503]
[1730124410599,0.004628,68952.0,68951.0,0.14503]
[1730124411319,0.004628,68952.0,68951.0,0.36155677]
[1730124411555,0.004628,68952.0,68951.0,0.14503]
[1730124412691,0.004628,68952.0,68948.0,0.290069]
[1730124413044,0.004628,68952.0,68950.0,0.145031]
[1730124413263,0.004628,68952.0,68951.0,0.14503]
[1730124413745,0.001628,68952.0,68951.0,0.14503]
[1730124414903,0.001628,68952.0,68951.0,0.14603]
[1730124415621,0.001628,68952.0,68951.0,0.25393043]
[1730124416432,0.00975821,68953.0,68952.0,0.262028]
[1730124416709,0.001646,68962.0,68952.0,0.262028]
[1730124416710,0.001646,68962.0,68961.0,0.262009]
[1730124416937,0.001644,68969.0,68968.0,0.50468567]
[1730124417456,0.001644,68969.0,68968.0,0.66518948]
[1730124417715,0.001644,68969.0,68968.0,0.48859781]
[1730124418432,0.001644,68969.0,68968.0,0.49059781]
[1730124418663,0.001644,68969.0,68968.0,0.87479753]
[1730124418895,0.001644,68969.0,68968.0,0.89779753]
[1730124419131,1e-06,68969.0,68968.0,0.89779753]
[1730124419395,0.001001,68969.0,68968.0,0.90679753]
[1730124419648,0.001001,68969.0,68968.0,0.90879753]
[1730124419883,1e-06,68969.0,68968.0,0.89779753]
[1730124420381,1e-06,68969.0,68968.0,0.91179753]
[1730124420644,1e-06,68969.0,68968.0,0.48859781]
[1730124420895,1e-06,68969.0,68968.0,0.50259781]
[1730124421133,1e-06,68969.0,68968.0,0.144994]
[1730124421363,0.001001,68969.0,68968.0,0.155994]
[1730124421596,0.001001,68969.0,68968.0,0.1728933]
[1730124421873,1e-06,68969.0,68968.0,0.144994]
[1730124422113,0.001001,68969.0,68968.0,0.155994]
[1730124422582,1e-06,68969.0,68968.0,0.244994]
[1730124422817,1e-06,68969.0,68962.0,0.005]
[1730124423061,1e-06,68969.0,68968.0,0.144994]
[1730124423303,0.001001,68969.0,68968.0,0.024]
[1730124423557,0.001001,68969.0,68968.0,0.01]
[1730124423783,0.001001,68969.0,68968.0,0.021]
[1730124424266,0.001001,68969.0,68968.0,0.165994]
[1730124424497,0.001001,68969.0,68968.0,0.155994]
[1730124424498,1e-06,68969.0,68968.0,0.155994]
[1730124424730,0.001001,68969.0,68968.0,0.155994]
[1730124424968,0.29649681,68969.0,68968.0,0.011]
[1730124425195,0.29549681,68969.0,68968.0,0.011]
[1730124425646,0.29649681,68969.0,68968.0,0.021]
[1730124426199,0.289989,68968.0,68956.0,0.21652677]
[1730124426425,0.145011,68960.0,68956.0,0.23817945]
[1730124426666,0.145011,68960.0,68956.0,0.21652677]
[1730124427148,0.290006,68964.0,68956.0,0.21652677]
[1730124427370,0.15050381,68967.0,68956.0,0.21652677]
[1730124427624,0.145011,68961.0,68956.0,0.21652677]
[1730124427884,0.15050381,68961.0,68938.0,0.005]
[1730124428137,0.38419972,68959.0,68958.0,0.21652677]
[1730124428369,0.38419972,68959.0,68943.0,0.290093]
[1730124428370,0.145016,68958.0,68951.0,0.290061]
[1730124428598,0.0797,68960.0,68956.0,0.21652677]
[1730124428831,5.122e-05,68978.0,68957.0,0.290035]
[1730124428832,0.145003,68964.0,68957.0,0.290035]
[1730124429050,1e-06,68969.0,68958.0,0.145014]
[1730124429051,0.001,68961.0,68958.0,0.145014]
[1730124429279,0.001,68961.0,68956.0,0.290036]
[1730124429557,0.15150381,68961.0,68949.0,0.22152677]
[1730124429782,0.145017,68957.0,68956.0,0.003]
[1730124430015,0.29004,68956.0,68949.0,0.21652677]
[1730124430244,0.15050381,68955.0,68949.0,0.21652677]
[1730124430472,0.580096,68954.0,68949.0,0.21652677]
[1730124430714,0.145031,68951.0,68949.0,0.21652677]
[1730124431003,0.145041,68946.0,68945.0,0.21652677]
[1730124431483,0.292023,68960.0,68947.0,0.145037]
[1730124431754,0.16399856,68957.0,68948.0,0.145036]
[1730124432001,0.16399856,68957.0,68942.0,0.21652677]
[1730124432002,0.01349475,68956.0,68942.0,0.21652677]
[1730124432253,0.01349475,68955.0,68951.0,0.145029]
[1730124432495,0.145011,68960.0,68955.0,0.145021]